bitfinex-derivatives/quotes_BTCF0:USTF0_20240923
["timestamp","ask_amount","ask_price","bid_price","bid_amount"]
[1727088409781,0.1253699,63585.0,63584.0,0.07864]
[1727088409972,0.11715126,63585.0,63584.0,0.15864]
[1727088411580,0.11715126,63585.0,63584.0,0.16364]
[1727088412169,0.078638,63585.0,63584.0,0.16364]
[1727088412875,0.11715104,63585.0,63584.0,0.16364]
[1727088413287,0.11715104,63585.0,63584.0,0.08364]
[1727088415677,0.11715104,63585.0,63584.0,0.19898726]
[1727088415678,0.03929138,63585.0,63584.0,0.19898726]
[1727088421680,0.078638,63585.0,63584.0,0.27898726]
[1727088421883,0.078638,63585.0,63584.0,0.19898726]
[1727088423893,0.16542533,63585.0,63584.0,0.005]
[1727088425188,0.16542533,63585.0,63584.0,0.08364]
[1727088425785,0.32225903,63585.0,63584.0,0.08364]
[1727088426294,0.16542533,63585.0,63584.0,0.08364]
[1727088430793,0.078638,63585.0,63584.0,0.2931315]
[1727088435199,0.078638,63585.0,63584.0,0.19883795]
[1727088435788,0.078638,63585.0,63584.0,0.19885134]
[1727088439595,0.078638,63585.0,63584.0,0.12021134]
[1727088442193,0.157276,63585.0,63584.0,0.005]
[1727088442998,0.237276,63585.0,63584.0,0.005]
[1727088443193,0.237276,63585.0,63584.0,0.06791748]
[1727088443400,0.158638,63585.0,63584.0,0.06791748]
[1727088443799,0.207238,63585.0,63584.0,0.06791748]
[1727088444402,0.207238,63585.0,63584.0,0.005]
[1727088445797,0.37267366,63585.0,63584.0,0.005]
[1727088447702,0.29267366,63585.0,63584.0,0.005]
[1727088448013,0.37267366,63585.0,63584.0,0.005]
[1727088448511,0.51370519,63585.0,63584.0,0.005]
[1727088449634,0.30814951,63585.0,63574.0,0.082351]
[1727088449908,0.158651,63575.0,63574.0,0.078651]
[1727088451302,0.2683356,63575.0,63574.0,0.091651]
[1727088451714,0.2683356,63575.0,63574.0,0.103651]
[1727088452907,0.2683356,63575.0,63574.0,0.21888978]
[1727088453106,0.2683356,63575.0,63574.0,0.14023878]
[1727088454504,0.2683356,63575.0,63574.0,0.21882243]
[1727088454706,0.2683356,63575.0,63574.0,0.21882795]
[1727088455416,0.2683356,63575.0,63574.0,0.20682795]
[1727088455620,0.2683356,63575.0,63574.0,0.09658365]
[1727088455919,0.2693356,63575.0,63574.0,0.08958365]
[1727088456520,0.47188,63574.0,63570.0,0.06286406]
[1727088456708,0.078668,63561.0,63558.0,0.3268]
[1727088456908,0.078671,63559.0,63558.0,0.00216]
[1727088457114,0.078677,63554.0,63553.0,0.45509355]
[1727088457307,0.078677,63554.0,63553.0,0.56956724]
[1727088457619,0.078677,63554.0,63553.0,0.47527369]
[1727088458116,0.439477,63554.0,63553.0,0.11447369]
[1727088458318,0.078678,63553.0,63550.0,0.0499]
[1727088458509,0.07868,63551.0,63548.0,0.078684]
[1727088458713,0.3608,63554.0,63546.0,0.3608]
[1727088458714,0.158683,63549.0,63546.0,0.3608]
[1727088460219,0.158683,63549.0,63547.0,0.078685]
[1727088460917,0.158683,63549.0,63548.0,0.01]
[1727088461410,0.158683,63549.0,63548.0,0.021]
[1727088462017,0.159683,63549.0,63548.0,0.021]
[1727088462318,0.160683,63549.0,63548.0,0.011]
[1727088463315,0.160683,63549.0,63548.0,0.007]
[1727088464008,0.159683,63549.0,63548.0,0.007]
[1727088464221,0.160683,63549.0,63548.0,0.013]
[1727088464924,0.160683,63549.0,63548.0,0.091684]
[1727088465823,0.080683,63549.0,63548.0,0.091684]
[1727088466126,0.160683,63549.0,63548.0,0.091684]
[1727088466826,0.002,63549.0,63548.0,0.091684]
[1727088467227,0.080683,63549.0,63548.0,0.091684]
[1727088467924,0.04131298,63549.0,63548.0,0.091684]
[1727088468625,0.04131298,63549.0,63548.0,0.452484]
[1727088468826,0.0037,63553.0,63552.0,0.078679]
[1727088469045,0.0037,63556.0,63555.0,0.078675]
[1727088469227,0.0042,63563.0,63560.0,0.078669]
[1727088469228,0.08,63562.0,63560.0,0.078669]
[1727088469531,0.08,63562.0,63549.0,0.1395]
[1727088469721,0.158674,63557.0,63555.0,0.078674]
[1727088470722,0.078674,63556.0,63555.0,0.078674]
[1727088472034,0.001,63557.0,63556.0,0.078674]
[1727088472336,0.158669,63560.0,63556.0,0.08]
[1727088473236,0.519469,63560.0,63559.0,0.078671]
[1727088473533,0.520469,63560.0,63559.0,0.078671]
[1727088474529,0.525469,63560.0,63559.0,0.078671]
[1727088474833,0.3668,63560.0,63559.0,0.078671]
[1727088475018,0.3658,63560.0,63559.0,0.078671]
[1727088475224,0.3698,63560.0,63559.0,0.078671]
[1727088476029,0.3698,63560.0,63559.0,0.158671]
[1727088476527,0.3698,63560.0,63559.0,0.078671]
[1727088477136,0.009,63560.0,63559.0,0.078671]
[1727088478230,0.009,63560.0,63559.0,0.158671]
[1727088480622,0.009,63560.0,63559.0,0.237342]
[1727088481943,0.009,63560.0,63559.0,0.158671]
[1727088482632,0.009,63560.0,63559.0,0.078671]
[1727088485147,0.02744687,63560.0,63559.0,0.158671]
[1727088486433,0.02744687,63560.0,63559.0,0.35121806]
[1727088487931,0.02744687,63560.0,63559.0,0.2727226]
[1727088488448,0.02744687,63560.0,63559.0,0.351205]
[1727088488644,0.02344687,63560.0,63559.0,0.351205]
[1727088488838,0.02644687,63560.0,63559.0,0.712005]
[1727088489544,0.02544687,63560.0,63559.0,0.712005]
[1727088489744,0.02544687,63560.0,63559.0,0.790676]
[1727088490244,0.02544687,63560.0,63559.0,0.7121936]
[1727088490435,0.02544687,63560.0,63559.0,0.6335226]
[1727088490636,0.02544687,63560.0,63559.0,0.71191456]
[1727088491044,0.0037,63565.0,63564.0,0.078664]
[1727088491347,0.158662,63566.0,63565.0,0.078663]
[1727088492448,0.168662,63566.0,63565.0,0.079663]
[1727088492640,0.18798559,63566.0,63565.0,0.079663]
[1727088493541,0.19798559,63566.0,63565.0,0.080663]
[1727088497550,0.11798559,63566.0,63565.0,0.080663]
[1727088497744,0.19798559,63566.0,63565.0,0.1591435]
[1727088497941,0.26689929,63566.0,63565.0,0.080663]
[1727088499147,0.39225312,63566.0,63565.0,0.080663]
[1727088499447,0.26689929,63566.0,63565.0,0.080663]
[1727088499945,0.26690044,63566.0,63565.0,0.080663]
[1727088501570,0.31518969,63566.0,63565.0,0.080663]
[1727088502151,0.45622541,63566.0,63565.0,0.080663]
[1727088502350,0.31518969,63566.0,63565.0,0.080663]
[1727088504055,0.078668,63563.0,63562.0,0.078667]
[1727088504245,0.14758285,63563.0,63562.0,0.078667]
[1727088504446,0.1958745,63563.0,63562.0,0.078667]
[1727088504650,0.2758745,63563.0,63562.0,0.078667]
[1727088505253,0.2758745,63563.0,63562.0,0.079667]
[1727088505452,0.2828745,63563.0,63562.0,0.079667]
[1727088505649,0.2828745,63563.0,63562.0,0.080667]
[1727088505840,0.42992796,63563.0,63562.0,0.080667]
[1727088506049,0.264968,63563.0,63562.0,0.080667]
[1727088506446,0.257968,63563.0,63562.0,0.1581475]
[1727088506748,0.257968,63563.0,63562.0,0.001]
[1727088506749,0.620768,63563.0,63562.0,0.001]
[1727088506953,0.627768,63563.0,63562.0,0.002]
[1727088512553,0.706437,63563.0,63562.0,0.002]
[1727088513959,0.345637,63563.0,63562.0,0.002]
[1727088514954,0.706437,63563.0,63562.0,0.002]
[1727088515255,0.73682877,63563.0,63562.0,0.002]
[1727088515873,0.73682882,63563.0,63562.0,0.002]
[1727088516458,0.706437,63563.0,63562.0,0.002]
[1727088518159,0.078673,63557.0,63556.0,0.078673]
[1727088518460,0.158673,63557.0,63556.0,0.078673]
[1727088519661,0.159673,63557.0,63556.0,0.078673]
[1727088520962,0.161673,63557.0,63556.0,0.078673]
[1727088521159,0.161673,63557.0,63556.0,0.1571535]
[1727088523170,0.18059788,63557.0,63556.0,0.1571535]
[1727088524059,0.18059788,63557.0,63556.0,0.078673]
[1727088524771,0.18059788,63557.0,63556.0,0.1571535]
[1727088525358,0.18059788,63557.0,63556.0,0.078673]
[1727088525565,0.18059788,63557.0,63556.0,0.1571535]
[1727088528567,0.18059788,63557.0,63556.0,0.27162156]
[1727088529166,0.18059788,63557.0,63556.0,0.078673]
[1727088531470,0.02192488,63557.0,63556.0,0.078673]
[1727088531678,0.3645,63563.0,63562.0,0.078667]
[1727088531864,0.3608,63563.0,63562.0,0.27292974]
[1727088532676,0.38012512,63563.0,63562.0,0.27292974]
[1727088533266,0.38012512,63563.0,63562.0,0.27281254]
[1727088533460,0.38012512,63563.0,63562.0,0.27381254]
[1727088533461,0.38812512,63563.0,63562.0,0.27381254]
[1727088534279,0.39512512,63563.0,63562.0,0.27481254]
[1727088534674,0.39512512,63563.0,63562.0,0.35347954]
[1727088536279,0.51232813,63563.0,63562.0,0.239334]
[1727088536668,0.46403934,63563.0,63562.0,0.239334]
[1727088536870,0.46403934,63563.0,63562.0,0.160667]
[1727088537069,0.51232802,63563.0,63562.0,0.160667]
[1727088537471,0.48193928,63563.0,63562.0,0.160667]
[1727088537672,0.46403935,63563.0,63562.0,0.160667]
[1727088537973,0.43365031,63563.0,63562.0,0.160667]
[1727088538170,0.46403934,63563.0,63562.0,0.160667]
[1727088539579,0.46403934,63563.0,63562.0,0.080667]
[1727088539773,0.65338176,63563.0,63562.0,0.080667]
[1727088541171,0.5123283,63563.0,63562.0,0.080667]
[1727088541476,0.51232805,63563.0,63562.0,0.080667]
[1727088542179,0.4640393,63563.0,63562.0,0.080667]
[1727088542684,0.1032393,63563.0,63562.0,0.080667]
[1727088543073,0.10323926,63563.0,63562.0,0.080667]
[1727088544187,0.03432512,63563.0,63562.0,0.1949617]
[1727088546183,0.03432512,63563.0,63562.0,0.19631713]
[1727088546581,0.11299112,63563.0,63562.0,0.19631713]
[1727088548081,0.11299112,63563.0,63562.0,0.27485339]
[1727088548285,0.11299112,63563.0,63562.0,0.080667]
[1727088552783,0.11299112,63563.0,63562.0,0.002]
[1727088556488,0.22263839,63563.0,63562.0,0.002]
[1727088556878,0.22263839,63563.0,63562.0,0.080667]
[1727088557076,0.19299112,63563.0,63562.0,0.080667]
[1727088560184,0.19299112,63563.0,63562.0,0.15920326]
[1727088560392,0.19299112,63563.0,63562.0,0.27535272]
[1727088561395,0.19299112,63563.0,63562.0,0.27536785]
[1727088563481,0.19299112,63563.0,63562.0,0.15920326]
[1727088563696,0.19299112,63563.0,63562.0,0.27537635]
[1727088564196,0.19299112,63563.0,63562.0,0.15920326]
[1727088564495,0.19299112,63563.0,63562.0,0.080667]
[1727088564883,0.19299112,63563.0,63562.0,0.15920326]
[1727088565193,0.19299112,63563.0,63562.0,0.19686093]
[1727088566291,0.27981119,63563.0,63562.0,0.080667]
[1727088569100,0.35691242,63563.0,63562.0,0.080667]
[1727088569292,0.35691242,63563.0,63553.0,0.0037]
[1727088569293,0.078669,63560.0,63559.0,0.07867]
[1727088569494,0.08,63560.0,63550.0,0.0037]
[1727088569792,0.439478,63554.0,63553.0,0.078677]
[1727088569994,0.519478,63554.0,63553.0,0.078677]
[1727088571488,0.519478,63554.0,63553.0,0.080677]
[1727088572483,0.519478,63554.0,63553.0,0.081677]
[1727088574889,0.519478,63554.0,63553.0,0.003]
[1727088576593,0.53869291,63554.0,63553.0,0.003]
[1727088578983,0.61737091,63554.0,63553.0,0.003]
[1727088582992,0.25657091,63554.0,63553.0,0.003]
[1727088584299,0.25657091,63554.0,63553.0,0.081678]
[1727088596418,0.25657091,63554.0,63553.0,0.16028942]
[1727088597511,0.25657091,63554.0,63553.0,0.27695989]
[1727088598311,0.25657091,63554.0,63553.0,0.19834847]
[1727088602001,0.01921491,63554.0,63553.0,0.19834847]
[1727088602216,0.3608,63555.0,63554.0,0.078677]
[1727088602400,0.37947895,63555.0,63554.0,0.38137778]
[1727088603511,0.37947895,63555.0,63554.0,0.125577]
[1727088603803,0.37947895,63555.0,63554.0,0.126577]
[1727088604615,0.01867895,63555.0,63554.0,0.126577]
[1727088604799,0.0037,63559.0,63558.0,0.157344]
[1727088604997,0.0037,63562.0,63561.0,0.078668]
[1727088605209,0.3608,63563.0,63562.0,0.078667]
[1727088605407,0.37984713,63563.0,63562.0,0.078667]
[1727088606901,0.38784713,63563.0,63562.0,0.079667]
[1727088608603,0.008,63563.0,63562.0,0.158334]
[1727088610220,0.016,63563.0,63562.0,0.159334]
[1727088611516,0.016,63563.0,63562.0,0.22228428]
[1727088611902,0.00236067,63567.0,63566.0,0.078662]
[1727088612114,0.00236067,63567.0,63566.0,0.518124]
[1727088612319,0.00236067,63567.0,63566.0,0.990084]
[1727088613116,0.01436067,63567.0,63566.0,1.05379634]
[1727088613610,0.01536067,63567.0,63566.0,0.992084]
[1727088614013,0.01536067,63567.0,63566.0,0.520124]
[1727088614903,6.7e-07,63567.0,63566.0,1.670746]
[1727088615106,0.0042,63579.0,63571.0,0.078656]
[1727088615306,0.0037,63584.0,63583.0,0.078641]
[1727088615615,0.3608,63593.0,63592.0,0.07863]
[1727088615818,0.3608,63593.0,63592.0,0.15863]
[1727088616004,0.3608,63593.0,63592.0,0.51943]
[1727088616005,0.01861615,63593.0,63592.0,0.51943]
[1727088616219,0.4408,63599.0,63597.0,0.078623]
[1727088616519,0.08,63598.0,63597.0,0.078623]
[1727088617308,0.08,63598.0,63597.0,0.079623]
[1727088618715,0.018535,63599.0,63598.0,0.078622]
[1727088618922,0.0823592,63601.0,63597.0,0.001]
[1727088619215,0.0823592,63601.0,63597.0,0.002]
[1727088619419,0.10105839,63601.0,63597.0,0.002]
[1727088619914,0.10105839,63601.0,63600.0,0.07862]
[1727088620118,0.02105839,63601.0,63600.0,0.07862]
[1727088620312,0.02105839,63601.0,63600.0,0.15862]
[1727088620510,0.0023592,63601.0,63600.0,0.15862]
[1727088620708,0.37932875,63603.0,63602.0,0.078617]
[1727088620909,0.01852875,63603.0,63602.0,0.439417]
[1727088621217,0.158607,63610.0,63602.0,0.3608]
[1727088621516,0.158607,63610.0,63608.0,0.07861]
[1727088622108,0.3608,63612.0,63610.0,0.078606]
[1727088622304,0.08,63611.0,63610.0,0.078606]
[1727088622917,0.08,63611.0,63602.0,0.3628]
[1727088622918,0.078608,63610.0,63605.0,0.078613]
[1727088623132,0.078608,63610.0,63608.0,0.001]
[1727088623421,0.078608,63610.0,63608.0,0.07961]
[1727088623818,0.078608,63610.0,63608.0,0.08061]
[1727088624316,0.208609,63609.0,63608.0,0.08061]
[1727088624817,0.208609,63609.0,63608.0,0.07961]
[1727088625210,0.208609,63609.0,63608.0,0.08061]
[1727088625422,0.208609,63609.0,63608.0,0.07961]
[1727088625610,0.208609,63609.0,63608.0,0.08061]
[1727088626819,0.32573391,63609.0,63602.0,0.26834502]
[1727088627018,0.11712491,63608.0,63602.0,0.26834502]
[1727088627321,0.11712491,63607.0,63602.0,0.26834502]
[1727088627513,0.95,63607.0,63606.0,0.078612]
[1727088627820,1.09314364,63607.0,63606.0,0.078612]
[1727088628413,0.14314364,63607.0,63606.0,0.078612]
[1727088628607,0.08675617,63607.0,63606.0,0.079612]
[1727088628921,0.08675617,63607.0,63606.0,0.080612]
[1727088630426,0.16536717,63607.0,63606.0,0.080612]
[1727088631517,0.1653677,63607.0,63606.0,0.080612]
[1727088632018,0.0867567,63607.0,63606.0,0.080612]
[1727088632326,0.17132032,63607.0,63606.0,0.080612]
[1727088632725,0.2580782,63607.0,63606.0,0.080612]
[1727088632921,0.0867567,63607.0,63606.0,0.080612]
[1727088633726,0.001,63607.0,63606.0,0.080612]
[1727088633951,0.079611,63607.0,63606.0,0.002]
[1727088634434,0.127111,63607.0,63606.0,0.002]
[1727088640031,0.127111,63607.0,63606.0,0.080612]
[1727088641642,0.21386989,63607.0,63606.0,0.080612]
[1727088644717,0.16636989,63607.0,63606.0,0.080612]
[1727088648832,0.079611,63607.0,63606.0,0.080612]
[1727088650328,0.001,63607.0,63606.0,0.20762083]
[1727088650533,0.001,63607.0,63606.0,0.239224]
[1727088650722,0.3608,63609.0,63608.0,0.15722]
[1727088650922,0.3608,63609.0,63608.0,0.21989844]
[1727088651931,0.3608,63609.0,63608.0,0.15722]
[1727088652122,0.3608,63609.0,63608.0,0.22106046]
[1727088652326,0.3608,63609.0,63608.0,0.35106046]
[1727088653132,0.3608,63609.0,63608.0,0.35206046]
[1727088653338,0.3608,63609.0,63608.0,0.28922]
[1727088653720,0.3608,63609.0,63608.0,0.43192]
[1727088655732,0.44754727,63609.0,63608.0,0.43192]
[1727088655934,0.2280151,63609.0,63608.0,0.45117384]
[1727088656127,0.03849562,63609.0,63608.0,0.37256384]
[1727088657235,0.03849562,63609.0,63608.0,0.45117384]
[1727088657530,0.03849562,63609.0,63608.0,0.08061]
[1727088657531,0.13,63609.0,63608.0,0.08061]
[1727088657842,0.24710782,63609.0,63608.0,0.08061]
[1727088658027,0.24710782,63609.0,63608.0,0.002]
[1727088660338,0.29536676,63609.0,63608.0,0.002]
[1727088660532,0.29536676,63609.0,63600.0,0.0037]
[1727088660533,0.078619,63601.0,63600.0,0.0037]
[1727088660721,0.16537919,63601.0,63594.0,0.0037]
[1727088660927,0.12553758,63597.0,63591.0,0.0507]
[1727088661131,0.16404161,63596.0,63591.0,0.0507]
[1727088661328,0.03850403,63595.0,63594.0,0.078627]
[1727088661628,0.17270681,63595.0,63594.0,0.078627]
[1727088661826,0.25947349,63595.0,63594.0,0.078627]
[1727088662031,0.08676668,63595.0,63594.0,0.078627]
[1727088662223,0.29539268,63595.0,63594.0,0.078627]
[1727088662629,0.07863,63592.0,63591.0,0.0037]
[1727088662829,0.07863,63592.0,63591.0,0.078631]
[1727088663429,0.16539668,63592.0,63591.0,0.078631]
[1727088663832,0.11028333,63595.0,63594.0,0.003]
[1727088664039,0.18890933,63595.0,63594.0,0.12066038]
[1727088664239,0.18890933,63595.0,63594.0,0.19911126]
[1727088664543,0.18890933,63595.0,63594.0,0.003]
[1727088664742,0.078627,63594.0,63593.0,0.07845088]
[1727088664938,0.078627,63594.0,63593.0,0.19540497]
[1727088665130,0.078628,63593.0,63592.0,0.07845088]
[1727088665330,0.078628,63593.0,63592.0,0.19540557]
[1727088665541,0.11028333,63595.0,63591.0,0.15708188]
[1727088665542,0.07863,63592.0,63591.0,0.15708188]
[1727088665833,0.07863,63592.0,63591.0,0.2740223]
[1727088666637,0.07863,63592.0,63591.0,0.15708188]
[1727088666934,0.07863,63592.0,63591.0,0.078631]
[1727088668846,0.078627,63594.0,63588.0,0.07838439]
[1727088669028,0.078628,63593.0,63592.0,0.04703301]
[1727088669344,0.078627,63594.0,63592.0,0.04703045]
[1727088669543,0.078627,63594.0,63591.0,0.04703045]
[1727088670047,0.078628,63593.0,63592.0,0.04703045]
[1727088670239,0.07863,63592.0,63591.0,0.04703045]
[1727088670435,0.20863,63592.0,63591.0,0.04703045]
[1727088670746,0.078633,63589.0,63588.0,0.14134206]
[1727088671045,0.439433,63589.0,63588.0,0.078634]
[1727088672135,0.439433,63589.0,63588.0,0.12663056]
[1727088673844,0.439433,63589.0,63588.0,0.079634]
[1727088676843,0.439433,63589.0,63588.0,0.12663056]
[1727088677235,0.439433,63589.0,63588.0,0.079634]
[1727088678548,0.439433,63589.0,63588.0,0.12663056]
[1727088678848,0.439433,63589.0,63588.0,0.079634]
[1727088680845,0.3608,63589.0,63588.0,0.079634]
[1727088682138,0.439433,63589.0,63588.0,0.079634]
[1727088682345,0.519433,63589.0,63588.0,0.079634]
[1727088683150,0.158633,63589.0,63588.0,0.079634]
[1727088686151,0.078633,63589.0,63588.0,0.079634]
[1727088687251,0.078633,63589.0,63588.0,0.19686309]
[1727088689151,0.078633,63589.0,63588.0,0.29128852]
[1727088691847,0.078633,63589.0,63588.0,0.29147025]
[1727088692446,0.158633,63589.0,63588.0,0.29147025]
[1727088693854,0.19714396,63589.0,63588.0,0.29147025]
[1727088694040,0.19714396,63589.0,63588.0,0.079634]
[1727088694546,0.19714416,63589.0,63588.0,0.079634]
[1727088696145,0.11714416,63589.0,63588.0,0.079634]
[1727088697549,0.12690346,63589.0,63588.0,0.079634]
[1727088697740,0.16541462,63589.0,63588.0,0.079634]
[1727088698054,0.16541409,63589.0,63588.0,0.079634]
[1727088698253,0.11714416,63589.0,63588.0,0.079634]
[1727088700947,0.078633,63589.0,63588.0,0.1970516]
[1727088701250,0.158633,63589.0,63588.0,0.1970516]
[1727088704054,0.158633,63589.0,63588.0,0.19705146]
[1727088708056,0.078633,63589.0,63588.0,0.29143748]
[1727088708248,0.078633,63589.0,63588.0,0.19705146]
[1727088708451,0.078633,63589.0,63588.0,0.29143721]
[1727088708843,0.03928927,63589.0,63588.0,0.29143721]
[1727088709053,0.03928927,63589.0,63588.0,0.079634]
[1727088709054,0.0777994,63589.0,63588.0,0.079634]
[1727088710652,0.16500923,63589.0,63588.0,0.079634]
[1727088710844,0.20351936,63589.0,63588.0,0.079634]
[1727088715154,0.0777994,63589.0,63588.0,0.079634]
[1727088715351,0.03851013,63589.0,63588.0,0.159634]
[1727088715556,0.50188964,63592.0,63591.0,0.078631]
[1727088715753,0.44757607,63592.0,63591.0,0.158631]
[1727088715958,0.01862511,63595.0,63594.0,0.078627]
[1727088716165,0.3608,63607.0,63599.0,0.078621]
[1727088716166,0.44312,63600.0,63599.0,0.078621]
[1727088716458,0.43942,63600.0,63599.0,0.19582557]
[1727088717059,0.45787427,63600.0,63599.0,0.19582557]
[1727088717662,0.45787427,63600.0,63599.0,0.19782557]
[1727088717965,0.45787427,63600.0,63599.0,0.29219325]
[1727088718168,0.45787427,63600.0,63599.0,0.19782557]
[1727088718360,0.45787427,63600.0,63599.0,0.1976512]
[1727088721562,0.45787427,63600.0,63599.0,0.19766166]
[1727088722860,0.09707427,63600.0,63599.0,0.19766166]
[1727088723061,0.45787427,63600.0,63599.0,0.19766166]
[1727088723466,0.45787427,63600.0,63599.0,0.27622498]
[1727088723966,0.54464571,63600.0,63599.0,0.080621]
[1727088724267,0.71708861,63600.0,63599.0,0.080621]
[1727088724675,0.77348599,63600.0,63599.0,0.080621]
[1727088725268,0.41268599,63600.0,63599.0,0.080621]
[1727088725566,0.54464571,63600.0,63599.0,0.002]
[1727088725767,0.60104309,63600.0,63599.0,0.002]
[1727088726366,0.60104348,63600.0,63599.0,0.002]
[1727088728564,0.52242348,63600.0,63599.0,0.160621]
[1727088728877,0.4660261,63600.0,63599.0,0.160621]
[1727088729084,0.6387407,63600.0,63599.0,0.160621]
[1727088729377,0.6387407,63600.0,63599.0,0.080621]
[1727088730068,0.7957416,63600.0,63599.0,0.080621]
[1727088730268,0.623027,63600.0,63599.0,0.080621]
[1727088730979,0.53625517,63600.0,63599.0,0.14347189]
[1727088731176,0.37925427,63600.0,63599.0,0.14347189]
[1727088733274,0.37925427,63600.0,63599.0,0.080621]
[1727088733667,0.37925427,63600.0,63599.0,0.14347189]
[1727088734075,0.3608,63600.0,63599.0,0.22209289]
[1727088734276,0.00235913,63602.0,63601.0,0.078619]
[1727088734575,0.00235913,63602.0,63601.0,0.237238]
[1727088735878,0.02114453,63602.0,63601.0,0.237238]
[1727088736079,0.00235913,63602.0,63601.0,0.238238]
[1727088737074,0.00235913,63602.0,63601.0,0.239238]
[1727088743089,0.00235913,63602.0,63601.0,0.160619]
[1727088743289,0.00235913,63602.0,63601.0,0.080619]
[1727088745387,0.00235913,63602.0,63601.0,0.160619]
[1727088745884,0.00235913,63602.0,63601.0,0.20771608]
[1727088746085,0.12795232,63602.0,63601.0,0.160619]
[1727088746294,0.16645236,63602.0,63601.0,0.160619]
[1727088747893,0.04085917,63602.0,63601.0,0.160619]
[1727088748192,0.16645236,63602.0,63601.0,0.160619]
[1727088748388,0.04085917,63602.0,63601.0,0.160619]
[1727088748593,0.16645236,63602.0,63601.0,0.160619]
[1727088750194,0.1664524,63602.0,63601.0,0.080619]
[1727088750380,0.56027674,63602.0,63601.0,0.002]
[1727088750784,0.60853918,63602.0,63601.0,0.080619]
[1727088751889,0.60854318,63602.0,63601.0,0.080619]
[1727088752290,0.66493784,63602.0,63601.0,0.080619]
[1727088753192,0.30413784,63602.0,63601.0,0.080619]
[1727088753591,0.078619,63601.0,63594.0,0.078627]
[1727088753891,0.08,63596.0,63594.0,0.078627]
[1727088754091,0.123826,63595.0,63594.0,0.07856332]
[1727088754299,0.0452,63595.0,63591.0,0.07856332]
[1727088754498,0.08,63592.0,63591.0,0.07856332]
[1727088754684,0.0406556,63592.0,63591.0,0.19600317]
[1727088754885,0.1192856,63592.0,63591.0,0.19600579]
[1727088755196,0.1192856,63592.0,63585.0,0.078638]
[1727088755197,0.078633,63589.0,63588.0,0.07856332]
[1727088755500,0.078633,63589.0,63586.0,0.080922]
[1727088755501,0.078636,63587.0,63586.0,0.080922]
[1727088756004,0.078636,63587.0,63586.0,0.00235868]
[1727088756894,0.078636,63587.0,63586.0,0.00535868]
[1727088757399,0.078636,63587.0,63586.0,0.00735868]
[1727088757794,0.439436,63587.0,63586.0,0.00735868]
[1727088758499,0.485336,63587.0,63586.0,0.00735868]
[1727088761201,0.50418663,63587.0,63586.0,0.00735868]
[1727088763507,0.58282263,63587.0,63586.0,0.00735868]
[1727088764598,0.50418663,63587.0,63586.0,0.00735868]
[1727088768805,0.58282263,63587.0,63586.0,0.00735868]
[1727088769307,0.58282263,63587.0,63586.0,0.005]
[1727088770612,0.22202263,63587.0,63586.0,0.005]
[1727088770817,0.50418663,63587.0,63586.0,0.005]
[1727088772219,0.45828663,63587.0,63586.0,0.005]
[1727088773616,0.09748663,63587.0,63586.0,0.005]
[1727088773916,0.45828663,63587.0,63586.0,0.005]
[1727088775220,0.53692263,63587.0,63586.0,0.005]
[1727088776415,0.45828663,63587.0,63586.0,0.005]
[1727088777129,0.53692263,63587.0,63586.0,0.005]
[1727088778211,0.17612263,63587.0,63586.0,0.005]
[1727088778412,0.45828663,63587.0,63586.0,0.005]
[1727088778616,0.09748663,63587.0,63586.0,0.005]
[1727088778810,0.53692263,63587.0,63586.0,0.005]
[1727088779418,0.53692263,63587.0,63586.0,0.05205635]
[1727088780411,0.45828663,63587.0,63586.0,0.005]
[1727088783523,0.09748663,63587.0,63586.0,0.005]
[1727088783717,0.45828663,63587.0,63586.0,0.005]
[1727088784721,0.53692263,63587.0,63586.0,0.005]
[1727088788318,0.45828663,63587.0,63586.0,0.005]
[1727088791329,0.45828663,63587.0,63586.0,0.12214017]
[1727088791924,0.53692263,63587.0,63586.0,0.12214017]
[1727088792522,0.53692263,63587.0,63572.0,0.10958714]
[1727088792523,0.078647,63578.0,63570.0,0.078656]
[1727088792826,0.078647,63578.0,63570.0,0.125656]
[1727088792827,0.4408,63571.0,63570.0,0.125656]
[1727088793021,0.4408,63571.0,63570.0,0.38305736]
[1727088793432,0.4408,63571.0,63570.0,0.24308568]
[1727088793926,0.4408,63571.0,63570.0,0.24908568]
[1727088794230,0.519456,63571.0,63570.0,0.24908568]
[1727088795230,0.519456,63571.0,63570.0,0.17042968]
[1727088795430,0.519456,63571.0,63570.0,0.17542968]
[1727088795720,0.519456,63571.0,63570.0,0.011]
[1727088799023,0.53833831,63571.0,63570.0,0.011]
[1727088803322,0.17753831,63571.0,63570.0,0.011]
[1727088803521,0.53833831,63571.0,63570.0,0.011]
[1727088818540,0.53833831,63571.0,63570.0,0.0599]
[1727088818740,0.53833831,63571.0,63570.0,0.138557]
[1727088819643,0.53833831,63571.0,63570.0,0.25354835]
[1727088821334,0.53833831,63571.0,63570.0,0.138557]
[1727088822649,0.53833831,63571.0,63570.0,0.33236682]
[1727088824443,0.53833831,63571.0,63570.0,0.25369597]
[1727088824642,0.45833831,63571.0,63570.0,0.25369597]
[1727088826142,0.53833831,63571.0,63570.0,0.25369597]
[1727088828353,0.53833831,63571.0,63570.0,0.34787677]
[1727088828354,0.49898146,63571.0,63570.0,0.34787677]
[1727088828550,0.49898146,63571.0,63570.0,0.25369597]
[1727088832352,0.49898146,63571.0,63570.0,0.12613897]
[1727088836347,0.59304218,63571.0,63570.0,0.011]
[1727088836658,0.67169818,63571.0,63570.0,0.011]
[1727088836950,0.62393746,63571.0,63570.0,0.011]
[1727088837153,1.57790231,63571.0,63563.0,0.04720487]
[1727088837356,0.078667,63562.0,63561.0,0.078667]
[1727088838852,0.078671,63559.0,63558.0,0.04720487]
[1727088839056,0.078672,63558.0,63557.0,0.078672]
[1727088839259,0.439472,63558.0,63557.0,0.078672]
[1727088840658,0.3608,63558.0,63557.0,0.158672]
[1727088841454,0.3648,63558.0,63557.0,0.158672]
[1727088843452,0.3648,63558.0,63557.0,0.36780472]
[1727088846062,0.3648,63558.0,63557.0,0.35229692]